[Event "ChessKid Cup Div-II 2023"]
[Site "Online"]
[Date "2023.05.22"]
[Round "1.3"]
[White "Sadhwani, Raunak"]
[Black "Gharibyan, Mamikon"]
[Result "1-0"]
[ECO "E11"]
[WhiteElo "2627"]
[BlackElo "2500"]
[Annotator "TA"]
[PlyCount "101"]
[EventDate "2023.05.21"]
[EventType "k.o."]
[EventCountry "NET"]
[SourceTitle "playchess.com"]
[Source "ChessBase"]
[SourceQuality "1"]
[TimeControl "900+3"]

{[%evp 12,101,23,9,27,35,39,52,41,10,11,20,12,22,41,46,36,34,53,17,31,25,8,9,13,19,53,62,52,16,14,0,9,-13,-3,-56,-53,-61,-46,-46,-58,-31,-35,-33,-30,-34,-16,-18,1,0,15,25,27,34,39,41,71,37,111,110,162,87,112,104,107,106,99,99,122,58,66,64,74,78,141,141,198,198,198,198,198,198,250,236,323,322,318,307,366,360,355,333]} 1. d4 {[%emt 0:00:03]} Nf6 {[%emt 0:00:10]} 2. c4 {[%emt 0:00:03]} e6 {[%emt 0:00:03]} 3. Nf3 {[%emt 0:00:01]} d5 {[%emt 0:00:10]} 4. g3 {[%emt 0:00:02]} Bb4+ {[%emt 0:00:26]} 5. Bd2 {[%emt 0:00:02]} a5 {[%emt 0:00:08]} 6. Bg2 {[%emt 0:00:06]} O-O {[%emt 0:00:09]} 7. Qc2 {[%emt 0:00:17] 7.Qc1 is the recent fashion.} c5 {[%emt 0:00:10] E11: Bogo-Indian.} 8. cxd5 {[%emt 0:01:47]} cxd4 {[%emt 0:00:06]} 9. Nxd4 {[%emt 0:00:49]} Qb6 {[%emt 0:00:04] White is slightly better.} 10. Nf3 {[%emt 0:00:03]} (10. e3 $5 {[%cal Rd5e6]}) 10... exd5 {[%emt 0:00:10]} 11. O-O {[%emt 0:00:02]} Nc6 {[%emt 0:00:09]} 12. Nc3 {[%emt 0:00:02]} d4 {[%emt 0:00:20] Prevents Be3} 13. Na4 {[%emt 0:00:02]} Qb5 {[%emt 0:00:11]} 14. Qd3 {[%emt 0:00:00] Dodges Bf5} Qh5 {[%emt 0:02:07]} (14... Qxa4 15. b3 $16) 15. Nb6 {[%emt 0:00:03]} (15. Nxd4 $2 Ng4 16. h3 Nge5 $19) 15... Bf5 {[%emt 0:00:15]} 16. Qb5 {[%emt 0:00:00]} Rad8 {[%emt 0:00:33]} 17. Bxb4 {[%emt 0:00:03]} axb4 {[%emt 0:00:21]} 18. Rac1 {[%emt 0:00:22] [#]} Be6 $146 {[%emt 0:00:40]} (18... Bg4 {looks sharper.} 19. Rc5 Qh6 20. Ne5 Rfe8) ({Predecessor:} 18... Be4 19. Qxh5 Nxh5 20. Na4 Bd5 21. Rfd1 Rfe8 22. Nc5 Re7 23. Rd2 Kf8 24. Rcd1 Rc8 {1-0 Chigaev,M (2617)-Sadhwani,R (2627) Bucharest Grand Prix rapid 2023 (9)}) 19. Qxh5 {[%emt 0:00:45]} Nxh5 {[%emt 0:00:03]} 20. b3 {[%emt 0:00:22]} Nf6 {[%emt 0:00:23][%cal Bh5f6,Bf6e4,Be4c3][%mdl 32]} 21. Ng5 {[%emt 0:00:58] Prevents Ne4.} Bg4 {[%emt 0:00:07]} 22. Rfe1 {[%emt 0:00:14]} (22. f3 $5 {[%cal Rf3g4]} Bc8 23. Rfd1 $11) 22... Rfe8 {[%emt 0:00:10] Inhibits Ne4.} 23. Nf3 {[%emt 0:00:45]} (23. Kf1 $11) 23... Ne4 $15 {[%emt 0:00:12]} 24. h3 {[%emt 0:00:09]} Bh5 {[%emt 0:00:43]} 25. g4 {[%emt 0:00:24]} Bg6 {[%emt 0:00:02]} 26. Nh4 {[%emt 0:00:00]} Nc3 {[%emt 0:00:04]} 27. Nxg6 {[%emt 0:00:01]} hxg6 {[%emt 0:00:10]} 28. Kf1 {[%emt 0:00:00] White is weak on the dark squares} Re6 {[%emt 0:03:04]} 29. Na4 {[%emt 0:00:14]} Rde8 {[%emt 0:00:32]} (29... Nxa2 $5 30. Ra1 Nc3 $15) 30. Nc5 {[%emt 0:00:41][%csl LRb7,LRe6]} R6e7 {[%emt 0:01:24] [#]} (30... Rxe2 $2 31. Rxe2 Rxe2 32. Rxc3 (32. Nxb7 d3 $11) 32... Rxa2 33. Rd3 $18) 31. Nxb7 $1 {[%emt 0:01:08][%mdl 64] Remove Defender, Decoy} Ne5 {[%emt 0:00:06]} (31... Rc8 32. Nd6) 32. Nc5 {[%emt 0:00:00]} g5 {[%emt 0:00:30]} 33. Rc2 {[%emt 0:00:45]} Ra7 {[%emt 0:01:02]} 34. Rd2 {[%emt 0:00:16]} Ra5 {[%emt 0:00:15]} ({Black should try} 34... Rxa2 $14 35. Rxd4 Nxe2) 35. Ne4 $1 $16 {[%emt 0:00:35]} Rd8 {[%emt 0:00:53]} (35... Rxa2 $16 {is a better defense.} 36. Rxa2 (36. Rxd4 Rb8 $16) 36... Nxa2) 36. Nxg5 {[%emt 0:00:19]} (36. a4 $1 $18) 36... Nxg4 {[%emt 0:00:05][%mdl 64] Discovered Attack} 37. Nxf7 {[%emt 0:00:35]} Nh2+ {[%emt 0:00:36]} 38. Kg1 {[%emt 0:00:01]} Kxf7 {[%emt 0:00:01]} 39. Kxh2 {[%emt 0:00:01]} Kf6 {[%emt 0:00:06] [#]} 40. Rg1 {[%emt 0:00:24]} (40. Ra1 $1 $16) 40... Rxa2 $14 {[%emt 0:00:03]} 41. Rxa2 {[%emt 0:00:01]} Nxa2 {[%emt 0:00:00][%mdl 4096] Endgame KRB-KRN} 42. Be4 {[%emt 0:00:01]} Nc3 {[%emt 0:00:04] [#]} (42... Rc8 $142) 43. Bd3 $1 $16 {[%emt 0:00:01]} Re8 {[%emt 0:00:00]} (43... Rd7 $16 44. Rg6+ Ke5) 44. Rg6+ $18 {[%emt 0:00:03]} Kf7 {[%emt 0:00:01]} 45. Rg4 {[%emt 0:00:43] Black must now prevent Bg6+.} Rd8 {[%emt 0:00:15]} 46. h4 {[%emt 0:00:03]} Kf6 {[%emt 0:00:05]} (46... Nd1 $142 47. Rg5 Nb2) 47. Kg3 {[%emt 0:00:02]} Rd5 {[%emt 0:00:06]} 48. Rg6+ {[%emt 0:00:03]} Kf7 {[%emt 0:00:01][%cal Oc3e2]} 49. Rb6 {[%emt 0:00:01] Strongly threatening Bc4.} Re5 {[%emt 0:00:04]} 50. Kf3 {[%emt 0:00:02]} ({Weaker is} 50. Rxb4 Nxe2+ 51. Bxe2 Rxe2 52. Rxd4 Kf6 $18) 50... Na2 {[%emt 0:00:05]} 51. Rd6 {[%emt 0:00:05] Weighted Error Value: White=0.10 (very precise) /Black=0.16 (very precise)} 1-0

[Event "ChessKid Cup Div-II 2023"]
[Site "Online"]
[Date "2023.05.22"]
[Round "1.3"]
[White "Meier, Georg"]
[Black "Alekseenko, Kirill"]
[Result "1-0"]
[ECO "A17"]
[WhiteElo "2614"]
[BlackElo "2686"]
[Annotator "TA"]
[PlyCount "49"]
[EventDate "2023.05.21"]
[EventType "k.o."]
[EventCountry "NET"]
[SourceTitle "playchess.com"]
[Source "ChessBase"]
[SourceQuality "1"]
[TimeControl "900+3"]

{[%evp 9,49,8,6,3,8,14,16,0,18,15,25,25,24,10,75,0,62,56,89,89,96,77,82,64,79,79,184,202,237,218,225,219,335,318,343,330,442,439,429,417,434,426]} 1. Nf3 {[%emt 0:00:04]} d5 {[%emt 0:00:05]} 2. e3 {[%emt 0:00:02]} Nf6 {[%emt 0:00:03]} 3. c4 {[%emt 0:00:01]} e6 {[%emt 0:00:00]} 4. Nc3 {[%emt 0:00:03]} a6 {[%emt 0:00:05]} 5. b3 {[%emt 0:00:01]} Bd6 {[%emt 0:00:12]} 6. Bb2 {[%emt 0:00:01] A17: English Opening: 1...Nf6 with ...Bb4.} O-O {[%emt 0:00:17]} 7. g3 $1 {[%emt 0:00:06][%mdl 4] is currently scoring better than 7.d4.} c5 {[%emt 0:02:33]} 8. cxd5 {[%emt 0:00:04] The position is equal.} exd5 {[%emt 0:00:08]} 9. Bg2 {[%emt 0:00:03]} Nc6 {[%emt 0:00:14]} 10. O-O {[%emt 0:00:02] [#]} Re8 $146 {[%emt 0:00:36]} ({Predecessor:} 10... Bg4 11. h3 Bh5 12. g4 Bg6 13. d4 h5 14. g5 Ne4 15. Nxd5 Nxg5 16. Ne5 Bxe5 17. dxe5 {1-0 Praggnanandhaa,R (2608)-Zhukova,N (2336) Titled Tuesday intern op 22nd Dec blitz 2020 (1)}) 11. Rc1 {[%emt 0:00:18]} b5 {[%emt 0:00:21] [#] Prevents Na4} (11... Bg4 $11 {keeps the balance.}) 12. Ne2 {[%emt 0:00:01]} (12. Ng5 $1 $16 Bg4 13. Qc2) 12... Bb7 {[%emt 0:00:26]} (12... Nb4 $11) 13. Nf4 $14 {[%emt 0:00:08]} d4 {[%emt 0:00:29] [#]} 14. Nxd4 $1 {[%emt 0:01:00]} cxd4 {[%emt 0:00:48]} 15. Bxc6 {[%emt 0:00:02]} Bxc6 {[%emt 0:00:28]} 16. Rxc6 {[%emt 0:00:02]} Qd7 {[%emt 0:00:28]} 17. Rc1 {[%emt 0:04:37]} Be5 {[%emt 0:01:51]} (17... Bxf4 $16 18. exf4 (18. gxf4 Qh3 $11) 18... h5) 18. Nd3 $18 {[%emt 0:00:39]} Qh3 {[%emt 0:01:02] ...Ng4 would be deadly.} 19. Nxe5 {[%emt 0:00:07]} (19. exd4 $2 Ng4 $19) 19... Rxe5 {[%emt 0:00:02]} 20. Qf3 {[%emt 0:00:02] Prevents Ng4} (20. Bxd4 $2 {loses.} Rh5 $19) 20... Rae8 {[%emt 0:00:31]} (20... Ree8 {is a better defense.} 21. Bxd4 Ne4) 21. Bxd4 {[%emt 0:00:03]} Rh5 {[%emt 0:00:15][%csl Gh5][%cal Rh3h2]} 22. Qg2 {[%emt 0:00:02]} Qe6 {[%emt 0:00:33]} 23. Rc6 {[%emt 0:00:04][%mdl 64] Skewer, Deflection} Qd7 {[%emt 0:00:11]} 24. Bxf6 {[%emt 0:00:15]} ({Resist} 24. Rxa6 Nd5 25. Rc1 Rd8 $18) 24... gxf6 {[%emt 0:00:03]} 25. d4 {[%emt 0:00:01] Weighted Error Value: White=0.09 (flawless) /Black=0.42} ({Don't take} 25. Rxa6 Qxd2 26. Rxf6 Rc5 $18) (25. Rxf6 Qxd2 26. Qf3 Rc5 27. Rxf7 Qd5 $18) 1-0

[Event "ChessKid Cup Div-II 2023"]
[Site "Online"]
[Date "2023.05.22"]
[Round "1.3"]
[White "Le, Tuan Minh"]
[Black "Oparin, Grigoriy"]
[Result "0-1"]
[ECO "D40"]
[WhiteElo "2542"]
[BlackElo "2667"]
[Annotator "TA"]
[PlyCount "180"]
[EventDate "2023.05.21"]
[EventType "k.o."]
[EventCountry "NET"]
[SourceTitle "playchess.com"]
[Source "ChessBase"]
[SourceQuality "1"]
[TimeControl "900+3"]

{[%evp 29,180,0,0,0,9,0,0,0,0,-16,-10,-19,-12,-8,-6,-11,-13,-16,-9,-59,-28,-47,-50,-65,-64,-52,-54,-128,-94,-97,-31,-109,-42,-42,-28,-42,-42,-262,-246,-239,-237,-239,-104,-110,-103,-102,-109,-104,-149,-133,-50,-111,-131,-115,0,-623,-626,-698,-673,-775,-508,-491,-491,-454,-372,-362,-326,-362,-359,-359,-204,-173,-8,-218,-8,-327,-327,-325,-314,-316,-289,-308,-150,-260,-273,-470,-451,-472,-462,-539,-523,-600,-370,-368,-347,-341,-341,-367,-286,-1617,-1606,-1564,-1549,-1207,-1149,-994,-764,-868,-751,-29954,-172,-159,-8,-12843,-12847,-29940,-10652,-6901,-6254,-29963,-29964,-29971,-29970,-29974,-29971,-29974,-29975,-29975,-29976,-29974,-29974,-29976,-29976,-29982,-29983,-29983,-29984,-29985,-29986,-29986,-29987,-29987,-29988,-29989,-29988,-29988,-29989,-29989,-29990,-29990,-29991,-29997,-29998]} 1. d4 {[%emt 0:00:03]} Nf6 {[%emt 0:00:04]} 2. c4 {[%emt 0:00:05]} e6 {[%emt 0:00:01]} 3. Nf3 {[%emt 0:00:01]} d5 {[%emt 0:00:01]} 4. Nc3 {[%emt 0:00:06]} c5 {[%emt 0:00:01]} 5. e3 {[%emt 0:00:14]} Nc6 {[%emt 0:00:01]} 6. a3 {[%emt 0:00:01]} dxc4 {[%emt 0:00:02]} 7. Bxc4 {[%emt 0:00:01]} a6 {[%emt 0:00:00]} 8. O-O {[%emt 0:00:23]} b5 {[%emt 0:00:02]} 9. Bd3 {[%emt 0:00:01]} Bb7 {[%emt 0:00:11]} 10. dxc5 {[%emt 0:00:05]} Bxc5 {[%emt 0:00:02]} 11. b4 {[%emt 0:00:00]} Bd6 {[%emt 0:00:14]} 12. Ne4 {[%emt 0:00:34]} Nxe4 {[%emt 0:00:03]} 13. Bxe4 {[%emt 0:00:02]} f5 {[%emt 0:00:02]} 14. Bc2 {[%emt 0:00:05]} Ne5 {[%emt 0:00:04]} 15. Nd4 {[%emt 0:00:31]} Qf6 {[%emt 0:00:23]} (15... Qg5 16. e4 Qh4 17. f4 $16 (17. exf5 Ng4 18. Nf3 Bxh2+ 19. Kh1 Bxf3)) 16. Bb3 {[%emt 0:01:00]} Rd8 {[%emt 0:01:23]} 17. f4 {[%emt 0:01:53]} Nc4 $1 {[%emt 0:00:34]} (17... Qg6 18. Qe2 Nc4 19. a4 $18) 18. Bxc4 {[%emt 0:00:04]} bxc4 {[%emt 0:00:00]} 19. Qa4+ {[%emt 0:00:31]} Kf7 {[%emt 0:00:04]} 20. Bb2 {[%emt 0:00:00]} Qe7 {[%emt 0:00:49]} (20... Qg6 21. Rf3 $16) 21. Rac1 {[%emt 0:00:08]} Rc8 {[%emt 0:00:04]} 22. Nf3 {[%emt 0:01:10]} Rhd8 {[%emt 0:00:06]} 23. Rf2 {[%emt 0:00:40]} h6 {[%emt 0:01:22]} 24. Nd4 {[%emt 0:00:51]} (24. Nd2 $11) 24... Bd5 {[%emt 0:00:21]} 25. Qd1 {[%emt 0:00:14]} (25. Qxa6 $2 Ra8 26. Qb5 Rdb8 27. Nxf5 Rxb5 $19) 25... Bb8 {[%emt 0:00:22]} 26. Bc3 {[%emt 0:01:11]} Kg8 {[%emt 0:00:08]} 27. Qh5 {[%emt 0:00:30]} Kh7 {[%emt 0:00:03]} 28. Rd1 {[%emt 0:00:16]} (28. Qh3 $15) 28... Be4 {[%emt 0:00:06]} 29. Rfd2 {[%emt 0:00:14]} Rd5 {[%emt 0:00:01]} (29... g6 $17 30. Qe2 e5 31. fxe5 Bxe5) 30. h3 {[%emt 0:00:23]} ({White should try} 30. Nf3 $1 $15 Kg8 31. Qg6) 30... Rg8 {[%emt 0:00:06]} ({Black should play} 30... Ba7 $17 31. Kh1 Bb6) 31. Nc6 $15 {[%emt 0:00:56]} Qb7 {[%emt 0:00:17]} 32. Rxd5 {[%emt 0:00:10]} exd5 {[%emt 0:00:03]} 33. Nd4 $2 {[%emt 0:00:12]} (33. Nxb8 $15 Rxb8 34. Rd2) 33... g6 $1 $19 {[%emt 0:00:20]} 34. Qe2 {[%emt 0:02:38]} g5 $1 {[%emt 0:00:00]} 35. Qh5 {[%emt 0:00:00]} gxf4 {[%emt 0:00:26]} (35... Ba7 $19 {has better winning chances.} 36. g4 (36. fxg5 $2 Rxg5 37. Qe2 Rxg2+ 38. Qxg2 Bxg2 $19) 36... fxg4) 36. Nxf5 $17 {[%emt 0:00:02]} Rxg2+ {[%emt 0:00:01]} 37. Kf1 {[%emt 0:00:01]} Rg6 {[%emt 0:00:01]} 38. Nxh6 {[%emt 0:01:12]} Rxh6 {[%emt 0:00:29]} 39. Qe8 {[%emt 0:00:02]} d4 {[%emt 0:04:10]} (39... fxe3 40. Qh8+ Kg6 41. Qg8+) (39... Bg2+ $1 $17 40. Ke1 Rxh3 41. Qh8+ Kg6 42. Qf6+ Kh5 43. exf4 Bxf4 44. Qxf4 Qe7+ 45. Kd2 Rf3 46. Qh2+ Rh3) 40. Bxd4 {[%emt 0:00:02]} (40. Rxd4 $15 Bg2+ 41. Ke1) 40... Bg2+ $1 $17 {[%emt 0:02:23]} (40... Rxh3 41. Qh8+ Kg6 42. Qxh3 $16) (40... Bd3+ $6 41. Rxd3 Qh1+ 42. Kf2 Qh2+ 43. Ke1 Qh1+ 44. Kf2 (44. Kd2 Rxh3 45. Bf6 Rh2+ 46. Kc3 Qa1+ 47. Kxc4 Qxf6 $11) 44... Qh2+ 45. Ke1 Qh1+ 46. Kd2 Rxh3 47. Bf6 Rh2+ 48. Kc3 Qa1+ 49. Kxc4 Qxf6 50. Qxb8 Qe6+ 51. Kd4 Qd7+ 52. Ke4 Qc6+ 53. Kd4 $11) 41. Ke1 {[%emt 0:00:09]} Bxh3 {[%emt 0:00:01]} ({Better is} 41... Rxh3 $17 42. Kd2 Kh6) 42. Qh8+ $2 {[%emt 0:00:16][%mdl 8192]} (42. Kd2 $11 Bg2 43. Kc1) 42... Kg6 $19 {[%emt 0:00:01]} 43. Qg8+ {[%emt 0:00:01]} Kh5 {[%emt 0:00:09]} 44. Kd2 {[%emt 0:00:08]} Qg2+ {[%emt 0:00:32]} 45. Qxg2 {[%emt 0:00:02]} Bxg2 {[%emt 0:00:00]} 46. exf4 {[%emt 0:00:06]} Bxf4+ {[%emt 0:00:03]} 47. Kc3 {[%emt 0:00:00]} Rc6 {[%emt 0:00:02]} 48. Bc5 {[%emt 0:00:02]} Bf3 {[%emt 0:00:17]} 49. Rf1 {[%emt 0:00:01]} Be5+ {[%emt 0:00:03]} (49... Kg4 $142 {White must now prevent ...Be2.} 50. Re1 Bd5 51. Rg1+ Kh5) 50. Kxc4 $19 {[%emt 0:00:07] [#]} Kg4 $2 {[%emt 0:00:12]} (50... Rf6 $1 $19 {[%cal Rf6f4]} 51. Kd3 Bg3) 51. Re1 $2 {[%emt 0:00:04]} (51. Rxf3 $1 $11 Kxf3 52. Kd5) 51... Kf5 $2 {[%emt 0:00:08]} (51... Kf4 $19 {...Rc7 would be deadly.} 52. a4 Rc8) 52. a4 $2 {[%emt 0:00:02][%mdl 8192]} (52. Rf1 $11 {and White is okay.}) 52... Rc8 {[%emt 0:00:04]} 53. Rf1 {[%emt 0:00:02]} Kg4 {[%emt 0:00:05]} 54. Rg1+ {[%emt 0:00:01]} Kf4 {[%emt 0:00:01]} 55. Re1 {[%emt 0:00:02]} Rd8 {[%emt 0:00:22]} (55... Bc6 $19 56. Rf1+ Bf3) 56. Be3+ {[%emt 0:00:06] [#]} (56. Bb6 $17 {keeps fighting.} Rc8+ 57. Bc5) 56... Kf5 $1 $19 {[%emt 0:00:03]} 57. Kc5 $2 {[%emt 0:00:05]} (57. Rf1 {was called for.} Rc8+ 58. Bc5) 57... Bd6+ $19 {[%emt 0:00:07]} 58. Kc4 {[%emt 0:00:04]} Bd5+ {[%emt 0:00:06]} 59. Kc3 {[%emt 0:00:05]} Be5+ {[%emt 0:00:05]} 60. Kc2 {[%emt 0:00:04]} Rc8+ {[%emt 0:00:08]} 61. Bc5 {[%emt 0:00:02]} Bd4 {[%emt 0:00:03]} 62. Kd3 {[%emt 0:00:02]} Bxc5 {[%emt 0:00:12]} 63. bxc5 {[%emt 0:00:00]} Bc6 {[%emt 0:00:00]} ({Inferior is} 63... Rxc5 64. Kd4 Ra5 65. Re5+ Kf6 66. Rxd5 Rxa4+ 67. Kc3 $11) 64. a5 $2 {[%emt 0:00:03]} (64. Kc4 Bxa4 65. Kb4) 64... Rh8 {[%emt 0:00:06]} 65. Re7 {[%emt 0:00:04]} Rh3+ {[%emt 0:00:03]} 66. Kd4 {[%emt 0:00:00]} Rh4+ {[%emt 0:00:00]} 67. Kc3 {[%emt 0:00:04]} Ra4 {[%emt 0:00:02]} 68. Rc7 {[%emt 0:00:06]} Bb5 {[%emt 0:00:00]} 69. Kb3 {[%emt 0:00:02]} Rxa5 $2 {[%emt 0:00:03]} (69... Ke6 {mates} 70. c6 Ra1 71. Rh7 Bxc6 72. Rh5 Bb5 73. Rh6+ Kf5 74. Kb4 Ra4+ 75. Kb3 Rxa5 76. Rh5+ Kg4 77. Rh6 Ra1 78. Rb6 Rb1+ 79. Ka3 a5 80. Ka2 Rb4 81. Ka3 Kf5 82. Rb8 Ke4 83. Rg8 Kd5 84. Rg5+ Kc6 85. Rg6+ Kb7 86. Rg8 Rf4 87. Rg7+ Kb6 88. Rg6+ Bc6 89. Rg3 a4 90. Rh3 Ka5 91. Rg3 Bb5 92. Rh3 Rd4 93. Rg3 Bc4 94. Rc3 Kb5 95. Rg3 Bd5 96. Rg7 Rd3+ 97. Kb2 Kb4 98. Rg6 Rd2+ 99. Kc1 Rh2 100. Kd1 a3 101. Rb6+ Ka5 102. Rb1 a2 103. Rc1 Kb4 104. Ke1 Rh1+ 105. Kd2 Rxc1 {[%mdl 64] Remove Defender, Deflection} 106. Kxc1 Kc3 107. Kd1 a1=Q+ 108. Ke2 Qb2+ 109. Ke1 Bg2 110. Kd1 Qd2#) 70. c6 $19 {[%emt 0:00:06]} Ra4 $2 {[%emt 0:00:19]} (70... Ke6 $17 {( -> ...Kd6)} 71. Kb4 Kd6 72. Kxa5 Kxc7) 71. Rf7+ $2 {[%emt 0:00:02][%mdl 8192]} (71. Rc8 $11) 71... Ke6 $19 {[%emt 0:00:01]} 72. c7 {[%emt 0:00:02]} Rc4 $1 {[%emt 0:00:01]} ({And not} 72... Kxf7 73. c8=Q $11) 73. Rh7 {[%emt 0:00:03]} Kd6 {[%emt 0:00:04]} 74. Rg7 {[%emt 0:00:05]} a5 {[%emt 0:00:02]} ({Worse is} 74... Rxc7 75. Rxc7 Kxc7 76. Kb2 $11) 75. Rg5 {[%emt 0:00:02]} a4+ {[%emt 0:00:01]} 76. Ka3 {[%emt 0:00:02]} Bd7 {[%emt 0:00:01]} 77. Rg3 {[%emt 0:00:05]} Kxc7 {[%emt 0:00:02]} 78. Rf3 {[%emt 0:00:03]} Kb6 {[%emt 0:00:02]} 79. Rf6+ {[%emt 0:00:01]} Bc6 {[%emt 0:00:01]} 80. Rf2 {[%emt 0:00:04]} Rc3+ {[%emt 0:00:02]} 81. Kb2 {[%emt 0:00:02]} Rh3 {[%emt 0:00:02]} 82. Rf5 {[%emt 0:00:02]} Bb5 {[%emt 0:00:03]} 83. Rf4 {[%emt 0:00:05]} Kc5 {[%emt 0:00:01]} 84. Kc2 {[%emt 0:00:04]} Bc4 {[%emt 0:00:05]} 85. Rf8 {[%emt 0:00:02]} a3 {[%emt 0:00:05]} 86. Ra8 {[%emt 0:00:00]} Kb4 {[%emt 0:00:04]} 87. Rb8+ {[%emt 0:00:05]} Bb5 {[%emt 0:00:01]} 88. Kb1 {[%emt 0:00:03]} Rh2 {[%emt 0:00:02]} 89. Ka1 {[%emt 0:00:01]} Ka4 {[%emt 0:00:02]} 90. Rb7 {[%emt 0:00:03]} Rh1+ {[%emt 0:00:09]} 0-1

[Event "ChessKid Cup Div-II 2023"]
[Site "Online"]
[Date "2023.05.22"]
[Round "1.3"]
[White "Bharath Subramaniyam H"]
[Black "Le, Quang Liem"]
[Result "0-1"]
[ECO "D48"]
[WhiteElo "2517"]
[BlackElo "2728"]
[Annotator "TA"]
[PlyCount "102"]
[EventDate "2023.05.21"]
[EventType "k.o."]
[EventCountry "NET"]
[SourceTitle "playchess.com"]
[Source "ChessBase"]
[SourceQuality "1"]
[TimeControl "900+3"]

{[%evp 16,102,-14,-7,-17,-31,-27,-22,-16,-33,-55,-31,-28,-18,-22,-28,-14,-29,-37,-37,-45,-97,-98,-118,-89,-167,-150,-210,-184,-272,-249,-296,-287,-338,-243,-239,-244,-233,-239,-231,-210,-201,-194,-377,-369,-370,-369,-366,-334,-334,-250,-341,-338,-390,-348,-395,-288,-274,-249,-483,-465,-486,-496,-485,-475,-447,-431,-615,-610,-789,-762,-1521,-908,-2183,-1258,-1097,-949,-1136,-591,-4821,-3143,-29967,-29968,-29968,-29969,-29967,-29949,-29977,-29960]} 1. c4 {[%emt 0:00:14]} c5 {[%emt 0:00:07]} 2. Nf3 {[%emt 0:00:02]} Nf6 {[%emt 0:00:03]} 3. e3 {[%emt 0:00:01]} e6 {[%emt 0:00:08]} 4. Nc3 {[%emt 0:00:02]} d5 {[%emt 0:00:09]} 5. d4 {[%emt 0:00:05]} a6 {[%emt 0:00:19]} 6. a3 {[%emt 0:00:42]} dxc4 {[%emt 0:00:04]} 7. Bxc4 {[%emt 0:00:00]} b5 {[%emt 0:00:01]} 8. Bd3 {[%emt 0:00:01]} Nbd7 {[%emt 0:00:13]} 9. O-O {[%emt 0:00:12]} Bb7 {[%emt 0:00:03] D48: Semi-Slav: Meran System: 7...b5 8 Bd3 a6.} 10. Bc2 {[%emt 0:01:06]} Rc8 {[%emt 0:00:14]} 11. Qe2 {[%emt 0:00:24] [#]} Bd6 $5 $146 {[%emt 0:01:04][%mdl 8] The position is equal. New and interesting.} ({Predecessor:} 11... Qc7 12. dxc5 Bxc5 13. e4 Bd6 14. Rd1 h6 15. h3 O-O 16. Bd2 Rfd8 17. Rac1 Qb8 {0-1 Kreken,E (2192)-Stefansson,V (2466) Kragero op 2023 (3)}) 12. Rd1 {[%emt 0:00:27]} Qc7 {[%emt 0:00:57]} 13. dxc5 {[%emt 0:00:33]} Bxc5 {[%emt 0:00:40]} 14. Bd2 {[%emt 0:00:52]} O-O {[%emt 0:00:05]} 15. Rac1 {[%emt 0:00:04]} Qb8 {[%emt 0:00:03]} 16. h3 {[%emt 0:00:23]} Rfd8 {[%emt 0:00:04]} 17. e4 {[%emt 0:01:18]} h6 {[%emt 0:00:32]} 18. Be3 {[%emt 0:00:31] [#] Black keeps a firm grip on the game.} (18. Kh1 $15) 18... Bxa3 $1 $17 {[%emt 0:00:59][%mdl 64] Deflection} 19. bxa3 {[%emt 0:01:59] Qe1 would be deadly.} Rxc3 {[%emt 0:00:03]} 20. Qd2 {[%emt 0:02:16]} (20. Bd4 $17 {is a better defense.} Rxa3 21. Qd2) 20... Rdc8 $19 {[%emt 0:00:34]} (20... Rxa3 21. Bf4 Qa8 22. Qb4 $15) (20... Nxe4 21. Bxe4 Rxc1 22. Rxc1 Bxe4 23. Bf4 $17) 21. Bd4 {[%emt 0:01:28]} (21. Ne1 $17) 21... Nxe4 {[%emt 0:00:18]} (21... Rxa3 22. Qb4 Ra2 23. Bb3 Rxc1 24. Rxc1 $17) 22. Qe2 {[%emt 0:00:20] [#]} (22. Bxe4 $142 Rxc1 23. Rxc1 Rxc1+ 24. Qxc1 Bxe4 25. Qe3 Bxf3 26. Qxf3) 22... Ndf6 $1 {[%emt 0:00:15][%cal Bd7f6,Bf6e4,Be4g3,Bg3f5][%mdl 32]} 23. Ne1 {[%emt 0:00:23]} (23. Re1 R3c4) 23... R3c4 {[%emt 0:00:14]} (23... Rxa3 $2 {loses.} 24. Bxe4 Nxe4 25. Qb2 Rxc1 26. Rxc1 $17) 24. Qe3 {[%emt 0:00:14]} Qc7 {[%emt 0:01:13]} 25. Bxe4 {[%emt 0:00:15]} Nxe4 {[%emt 0:00:34]} ({Worse is} 25... Rxc1 26. Rxc1 Qxc1 27. Bxb7 Qxe3 28. Bxe3 $11) 26. Rxc4 {[%emt 0:00:02]} bxc4 {[%emt 0:00:26]} 27. f3 {[%emt 0:00:02]} Ng3 {[%emt 0:00:05] Hoping for ...Nf5.} 28. Be5 {[%emt 0:00:16]} Nf5 $1 {[%emt 0:00:01]} 29. Qc3 {[%emt 0:00:00]} (29. Bxc7 Nxe3 30. Rd8+ Rxd8 31. Bxd8) 29... Qc5+ {[%emt 0:00:15]} 30. Kh1 {[%emt 0:00:05]} f6 {[%emt 0:00:47]} 31. Bh2 {[%emt 0:00:02]} Bd5 {[%emt 0:00:13]} 32. Nc2 {[%emt 0:00:04]} h5 {[%emt 0:00:25]} 33. Bf4 {[%emt 0:00:07]} e5 {[%emt 0:00:20]} 34. Bh2 {[%emt 0:00:15]} Be6 {[%emt 0:00:25]} 35. Bg1 {[%emt 0:00:09]} Qc7 {[%emt 0:00:03]} 36. Bf2 {[%emt 0:00:10]} Rd8 {[%emt 0:00:07][%cal Bc8d8,Bd8d3,Bd3d2][%mdl 32]} 37. Re1 {[%emt 0:00:33]} (37. Rxd8+ Qxd8 38. Ne3) 37... Rd3 {[%emt 0:00:05]} 38. Qb4 {[%emt 0:00:00]} a5 {[%emt 0:00:40]} 39. Qb5 {[%emt 0:00:06]} Bd7 {[%emt 0:00:01][%cal Be6d7,Bd7e8,Be8g6,Bg6f5][%mdl 32] Wards off Qe8+} 40. Qb1 {[%emt 0:00:11]} Rd2 {[%emt 0:00:11]} 41. Kg1 {[%emt 0:00:06]} (41. Ne3 $142 Nd4 42. Nd5) 41... c3 {[%emt 0:00:15]} 42. Qb3+ {[%emt 0:00:05]} Kh7 {[%emt 0:00:03][%cal Od2f2]} 43. Rc1 {[%emt 0:00:07]} Qc6 {[%emt 0:00:25][%cal Od2f2] ...Rxf2! is the strong threat.} 44. Qf7 {[%emt 0:00:07]} Be8 {[%emt 0:00:03]} 45. Qa7 {[%emt 0:00:07]} Bg6 {[%emt 0:00:20] Strongly threatening ...Qb5.} 46. Be1 {[%emt 0:00:31]} Qa4 {[%emt 0:00:13]} 47. Ne3 {[%emt 0:00:07]} Qxa3 {[%emt 0:00:27]} 48. Nxf5 {[%emt 0:00:05]} Bxf5 {[%emt 0:00:00] Black mates.} ({Don't do} 48... Qxc1 49. Qxg7#) 49. Bxd2 {[%emt 0:00:04]} cxd2 {[%emt 0:00:00]} 50. Rf1 {[%emt 0:00:06]} Qd3 {[%emt 0:00:09][%cal Od3f1]} 51. Rd1 {[%emt 0:00:07]} Qe2 {[%emt 0:00:03] An entertaining game by Le.   Weighted Error Value: White=0.73/Black=0.41} 0-1